bitfinex/quotes_BTCUSD_20250910
["timestamp","ask_amount","ask_price","bid_price","bid_amount"]
[1757528974378,0.53044168,113400.0,113390.0,0.22701388]
[1757528974584,0.33446697,113400.0,113390.0,0.22701388]
[1757528974806,0.53044168,113400.0,113390.0,0.22701388]
[1757528975702,0.52745168,113400.0,113390.0,0.22701388]
[1757528976132,0.33147697,113400.0,113390.0,0.22701388]
[1757528976342,0.52745168,113400.0,113390.0,0.22701388]
[1757528977472,0.53044168,113400.0,113390.0,0.22701388]
[1757528981509,0.52745168,113400.0,113390.0,0.22701388]
[1757528981697,0.53044168,113400.0,113390.0,0.22701388]
[1757528981914,0.33446697,113400.0,113390.0,0.22701388]
[1757528982132,0.53044168,113400.0,113390.0,0.22701388]
[1757528983209,0.33147697,113400.0,113390.0,0.22701388]
[1757528983428,0.32904697,113400.0,113390.0,0.40339627]
[1757528983865,0.17760697,113400.0,113390.0,0.40653627]
[1757528984072,0.32900697,113400.0,113390.0,0.40653627]
[1757528984513,0.32900697,113400.0,113390.0,0.40339627]
[1757528986696,0.32900697,113400.0,113390.0,0.23015388]
[1757528986886,0.32900697,113400.0,113390.0,0.40653627]
[1757528987523,0.32900697,113400.0,113390.0,0.40339627]
[1757528988417,0.32900697,113400.0,113390.0,0.40653627]
[1757528989513,0.17760697,113400.0,113390.0,0.40653627]
[1757528989734,0.32904697,113400.0,113390.0,0.40653627]
[1757528994462,0.32904697,113400.0,113390.0,0.40339627]
[1757528994680,0.33109697,113400.0,113390.0,0.40339627]
[1757528994910,0.32904697,113400.0,113390.0,0.40339627]
[1757528995799,0.32900697,113400.0,113390.0,0.40339627]
[1757528996440,0.32900697,113400.0,113390.0,0.40649627]
[1757528996636,0.32900697,113400.0,113390.0,0.40339627]
[1757528997048,0.32900697,113400.0,113390.0,0.40649627]
[1757528997266,0.32900697,113400.0,113390.0,0.40339627]
[1757528997476,0.32900697,113400.0,113390.0,0.40649627]
[1757528997672,0.32900697,113400.0,113390.0,0.47388533]
[1757528997673,0.32892674,113400.0,113390.0,0.47388533]
[1757528999489,0.0011599,113400.0,113390.0,0.47388533]
[1757528999699,0.0011599,113400.0,113390.0,0.49714533]
[1757528999903,0.1525599,113400.0,113390.0,0.49714533]
[1757529000754,0.0011599,113400.0,113390.0,0.47388533]
[1757529001590,0.0011599,113400.0,113390.0,0.54082228]
[1757529004397,0.17752674,113400.0,113390.0,0.53772228]
[1757529004617,0.17752674,113400.0,113390.0,0.47033322]
[1757529005020,0.0011599,113400.0,113390.0,0.47343322]
[1757529005276,0.32892674,113400.0,113390.0,0.47033322]
[1757529005501,0.1525599,113400.0,113390.0,0.47343322]
[1757529005757,0.0011599,113400.0,113390.0,0.47343322]
[1757529005992,0.1525599,113400.0,113390.0,0.47343322]
[1757529006224,0.1525599,113400.0,113390.0,0.5609644]
[1757529006439,0.32892674,113400.0,113390.0,0.5609644]
[1757529008422,0.32892674,113400.0,113390.0,0.38148201]
[1757529008634,0.81354968,113400.0,113390.0,0.22493388]
[1757529008845,0.83727968,113400.0,113390.0,0.22493388]
[1757529009058,0.64130497,113400.0,113390.0,0.22493388]
[1757529009704,0.64130497,113400.0,113390.0,0.21793388]
[1757529009705,0.83627968,113400.0,113390.0,0.21793388]
[1757529010121,0.83627968,113400.0,113390.0,0.22193388]
[1757529010557,0.83627968,113400.0,113390.0,0.21893388]
[1757529010830,0.83627968,113400.0,113390.0,0.21993388]
[1757529013890,0.83627968,113400.0,113390.0,0.21893388]
[1757529014163,0.83627968,113400.0,113390.0,0.21993388]
[1757529014613,0.83627968,113400.0,113390.0,0.21893388]
[1757529014866,0.83627968,113400.0,113390.0,0.21793388]
[1757529015070,0.83727968,113400.0,113390.0,0.21993388]
[1757529015254,0.68587968,113400.0,113390.0,0.21993388]
[1757529015471,0.83627968,113400.0,113390.0,0.21793388]
[1757529016571,0.44433026,113400.0,113390.0,0.21793388]
[1757529016797,0.57501846,113400.0,113390.0,0.21793388]
[1757529017273,0.70570666,113400.0,113390.0,0.21793388]
[1757529017497,0.73083324,113400.0,113390.0,0.21793388]
[1757529018572,0.46945684,113400.0,113390.0,0.21793388]
[1757529018833,0.73083324,113400.0,113390.0,0.21793388]
[1757529019905,0.73079324,113400.0,113390.0,0.21793388]
[1757529020110,0.60010504,113400.0,113390.0,0.21793388]
[1757529021570,0.73079324,113400.0,113390.0,0.21793388]
[1757529023069,1.07079324,113400.0,113390.0,0.21793388]
[1757529023255,1.07958949,113400.0,113390.0,0.21793388]
[1757529024004,0.91943324,113400.0,113390.0,0.21793388]
[1757529024214,1.07079324,113400.0,113390.0,0.21893388]
[1757529024425,1.07279324,113400.0,113390.0,0.21893388]
[1757529025270,0.66005684,113400.0,113390.0,0.21893388]
[1757529025490,1.07279324,113400.0,113390.0,0.21893388]
[1757529025906,1.19379324,113400.0,113390.0,0.21893388]
[1757529026801,1.04243324,113400.0,113390.0,0.21893388]
[1757529027015,1.19379324,113400.0,113390.0,0.21893388]
[1757529028373,1.16866666,113400.0,113390.0,0.21893388]
[1757529028561,1.19379324,113400.0,113390.0,0.21893388]
[1757529031467,1.26151324,113400.0,113390.0,0.21893388]
[1757529031868,1.23638666,113400.0,113390.0,0.21893388]
[1757529033626,1.26151324,113400.0,113390.0,0.21893388]
[1757529034748,1.28798694,113400.0,113390.0,0.21893388]
[1757529035633,1.02661054,113400.0,113390.0,0.21893388]
[1757529035846,1.28798694,113400.0,113390.0,0.21893388]
[1757529038797,1.13662694,113400.0,113390.0,0.21893388]
[1757529039020,1.28798694,113400.0,113390.0,0.21893388]
[1757529041995,1.13662694,113400.0,113390.0,0.21893388]
[1757529042259,1.02657054,113400.0,113390.0,0.21893388]
[1757529042484,1.28794694,113400.0,113390.0,0.21893388]
[1757529043135,0.87525054,113400.0,113390.0,0.21893388]
[1757529043352,1.02657054,113400.0,113390.0,0.21893388]
[1757529043581,1.05781883,113400.0,113390.0,0.21893388]
[1757529043820,1.31919523,113400.0,113390.0,0.21893388]
[1757529044281,1.02657054,113400.0,113390.0,0.21893388]
[1757529044698,1.28794694,113400.0,113390.0,0.21893388]
[1757529045159,1.30438614,113400.0,113390.0,0.21893388]
[1757529045408,1.04300974,113400.0,113390.0,0.21893388]
[1757529045617,1.43507434,113400.0,113390.0,0.21893388]
[1757529045834,1.04300974,113400.0,113390.0,0.21893388]
[1757529046048,1.30438614,113400.0,113390.0,0.21893388]
[1757529047330,1.04300974,113400.0,113390.0,0.21893388]
[1757529047549,1.31055236,113400.0,113390.0,0.21893388]
[1757529048995,1.04917596,113400.0,113390.0,0.21893388]
[1757529049235,1.31055236,113400.0,113390.0,0.21893388]
[1757529050060,1.31835236,113400.0,113390.0,0.21893388]
[1757529050272,1.13275866,113400.0,113390.0,0.21893388]
[1757529050484,1.03038226,113400.0,113390.0,0.21893388]
[1757529050698,1.29175866,113400.0,113390.0,0.21893388]
[1757529052571,1.42244686,113400.0,113390.0,0.21893388]
[1757529052777,1.4414041,113400.0,113390.0,0.21893388]
[1757529052983,1.46787776,113400.0,113390.0,0.21893388]
[1757529056291,1.07581316,113400.0,113390.0,0.21893388]
[1757529056519,1.46787776,113400.0,113390.0,0.21893388]
[1757529056729,1.33718956,113400.0,113390.0,0.21893388]
[1757529057134,1.33720788,113400.0,113390.0,0.21893388]
[1757529058350,1.07583148,113400.0,113390.0,0.21893388]
[1757529058552,1.33720788,113400.0,113390.0,0.21893388]
[1757529059451,1.33664788,113400.0,113390.0,0.21893388]
[1757529059853,1.46733608,113400.0,113390.0,0.21893388]
[1757529061509,1.46725608,113400.0,113390.0,0.21893388]
[1757529063207,1.33656788,113400.0,113390.0,0.21893388]
[1757529063427,1.33628926,113400.0,113390.0,0.21893388]
[1757529063683,1.07491286,113400.0,113390.0,0.21893388]
[1757529063898,1.33628926,113400.0,113390.0,0.21893388]
[1757529067443,1.33608926,113400.0,113390.0,0.21893388]
[1757529071604,1.46677746,113400.0,113390.0,0.21893388]
[1757529072675,1.30889746,113400.0,113390.0,0.21893388]
[1757529072882,1.46645746,113400.0,113390.0,0.21893388]
[1757529073088,1.33576926,113400.0,113390.0,0.21893388]
[1757529074513,1.46645823,113400.0,113390.0,0.21893388]
[1757529075494,1.46545823,113400.0,113390.0,0.21893388]
[1757529075907,1.46445823,113400.0,113390.0,0.21793388]
[1757529076348,1.46545823,113400.0,113390.0,0.21893388]
[1757529076554,1.46445823,113400.0,113390.0,0.21793388]
[1757529076974,1.46545823,113400.0,113390.0,0.21893388]
[1757529077397,1.33533003,113400.0,113390.0,0.21893388]
[1757529078431,1.645797,113400.0,113390.0,0.21893388]
[1757529078677,1.63962612,113400.0,113390.0,0.21893388]
[1757529079719,1.63946612,113400.0,113390.0,0.21893388]
[1757529080426,1.66209737,113400.0,113390.0,0.21893388]
[1757529080661,1.64563828,113400.0,113390.0,0.21893388]
[1757529081118,1.63946612,113400.0,113390.0,0.21893388]
[1757529081859,1.66210105,113400.0,113390.0,0.21893388]
[1757529082259,1.63946612,113400.0,113390.0,0.21893388]
[1757529083019,1.63930612,113400.0,113390.0,0.21893388]
[1757529083234,1.65577049,113400.0,113390.0,0.21893388]
[1757529083434,1.65565049,113400.0,113390.0,0.21893388]
[1757529083939,1.63918612,113400.0,113390.0,0.21893388]
[1757529085495,1.66182226,113400.0,113390.0,0.21893388]
[1757529085721,1.66166226,113400.0,113390.0,0.21893388]
[1757529088701,0.20150897,113390.0,113380.0,0.00125092]
[1757529088927,0.85389406,113390.0,113380.0,0.00125092]
[1757529089179,0.88188406,113390.0,113380.0,0.00125092]
[1757529089376,0.88198406,113390.0,113380.0,0.00125092]
[1757529090030,0.91045992,113390.0,113380.0,0.00225092]
[1757529092358,0.518261,113390.0,113380.0,0.00225092]
[1757529092532,0.75425992,113390.0,113380.0,0.00225092]
[1757529092748,0.91029992,113390.0,113380.0,0.00225092]
[1757529093352,0.75425992,113390.0,113380.0,0.00225092]
[1757529093554,0.91017992,113390.0,113380.0,0.00225092]
[1757529093806,0.91009992,113390.0,113380.0,0.00225092]
[1757529094004,0.91005992,113390.0,113380.0,0.00225092]
[1757529095212,0.75425992,113390.0,113380.0,0.00225092]
[1757529095388,0.90993992,113390.0,113380.0,0.00225092]
[1757529096001,0.53524046,113390.0,113380.0,0.00225092]
[1757529096251,0.69092046,113390.0,113380.0,0.00225092]
[1757529097005,0.88701992,113390.0,113380.0,0.00225092]
[1757529097191,0.87055727,113390.0,113380.0,0.00225092]
[1757529098020,0.87051727,113390.0,113380.0,0.00225092]
[1757529098914,0.47831835,113390.0,113380.0,0.00225092]
[1757529099128,0.87051727,113390.0,113380.0,0.00225092]
[1757529099349,0.71487727,113390.0,113380.0,0.00225092]
[1757529099559,0.87035727,113390.0,113380.0,0.00426092]
[1757529099759,0.87035727,113390.0,113380.0,0.00225092]
[1757529099921,0.47815835,113390.0,113380.0,0.00225092]
[1757529100134,0.87035727,113390.0,113380.0,0.00225092]
[1757529100340,0.67405781,113390.0,113380.0,0.00426092]
[1757529100789,0.47795835,113390.0,113380.0,0.00426092]
[1757529100991,0.87015727,113390.0,113380.0,0.00426092]
[1757529101417,0.87015727,113390.0,113380.0,0.00225092]
[1757529102012,0.67103781,113390.0,113380.0,0.00426092]
[1757529102221,0.47288835,113390.0,113380.0,0.00426092]
[1757529102432,0.47787835,113390.0,113380.0,0.00426092]
[1757529102578,0.31760835,113390.0,113380.0,0.00426092]
[1757529102803,0.66894781,113390.0,113380.0,0.00426092]
[1757529103631,0.51370781,113390.0,113380.0,0.00426092]
[1757529103840,0.66894781,113390.0,113380.0,0.00426092]
[1757529104057,0.64587123,113390.0,113380.0,0.00426092]
[1757529104262,0.64382123,113390.0,113380.0,0.00426092]
[1757529104492,0.64382123,113390.0,113380.0,0.00723092]
[1757529104912,0.64382123,113390.0,113380.0,0.00426092]
[1757529105343,0.29248177,113390.0,113380.0,0.00426092]
[1757529105547,0.64386123,113390.0,113380.0,0.00426092]
[1757529105752,0.64386123,113390.0,113380.0,0.18362887]
[1757529105753,0.17848239,113390.0,113380.0,0.18362887]
[1757529105969,0.33380239,113390.0,113380.0,0.20845887]
[1757529106179,0.0021,113390.0,113380.0,0.20845887]
[1757529106588,0.15742,113390.0,113380.0,0.20845887]
[1757529106995,0.15642,113390.0,113380.0,0.234927]
[1757529107406,0.0011,113390.0,113380.0,0.234927]
[1757529107819,0.0011,113390.0,113380.0,0.30132093]
[1757529108024,0.0011,113390.0,113380.0,0.38885211]
[1757529108274,0.0001,113390.0,113380.0,0.47537563]
[1757529108468,0.0001,113390.0,113380.0,0.67537563]
[1757529108687,0.0011,113390.0,113380.0,0.67637563]
[1757529108892,0.0011,113390.0,113380.0,0.67537563]
[1757529109095,0.0021,113390.0,113380.0,0.67837563]
[1757529110357,0.0021,113390.0,113380.0,1.17349563]
[1757529110580,0.0021,113390.0,113380.0,1.32353563]
[1757529110789,0.0021,113390.0,113380.0,1.43677728]
[1757529111007,0.0021,113390.0,113380.0,1.23165728]
[1757529111205,0.0021,113390.0,113380.0,1.78689728]
[1757529111425,0.0001,113390.0,113380.0,1.78389728]
[1757529111633,0.0011,113390.0,113380.0,1.78589728]
[1757529111832,0.0011,113390.0,113380.0,1.63065728]
[1757529112052,0.0011,113390.0,113380.0,1.78589728]
[1757529112254,0.0021,113390.0,113380.0,1.78889728]
[1757529112877,0.0021,113390.0,113380.0,1.78689728]
[1757529113326,0.0021,113390.0,113380.0,1.78989728]
[1757529113518,0.0021,113390.0,113380.0,1.79009728]
[1757529114321,0.0021,113390.0,113380.0,1.84009728]
[1757529114567,0.0021,113390.0,113380.0,1.86522386]
[1757529114750,0.0021,113390.0,113380.0,1.91522386]
[1757529115171,0.0021,113390.0,113380.0,1.85194221]
[1757529115386,0.0021,113390.0,113380.0,1.7596191]
[1757529115596,0.0001599,113400.0,113390.0,0.30150897]
[1757529115815,0.0001599,113400.0,113390.0,0.56520556]
[1757529116027,0.0001599,113400.0,113390.0,1.10731556]
[1757529116234,0.07051254,113430.0,113420.0,0.71633574]
[1757529116447,0.07063678,113430.0,113420.0,0.96120926]
[1757529116665,0.07073678,113430.0,113420.0,0.98673926]
[1757529116876,0.07073678,113430.0,113420.0,1.07427044]
[1757529117144,0.00022424,113430.0,113420.0,0.94548539]
[1757529117570,0.00022424,113430.0,113420.0,1.10068539]
[1757529117775,0.37264389,113430.0,113420.0,0.29540187]
[1757529117998,0.17654443,113430.0,113420.0,0.45060187]
[1757529118202,0.00022424,113430.0,113420.0,0.54020011]
[1757529118406,0.00022424,113430.0,113420.0,0.38500011]
[1757529118624,0.00022424,113430.0,113420.0,0.54120011]
[1757529118841,0.00022424,113430.0,113420.0,0.54320011]
[1757529119733,0.00022424,113430.0,113420.0,0.38800011]
[1757529119915,0.00022424,113430.0,113420.0,0.27790893]
[1757529120153,0.00022424,113430.0,113420.0,0.30046893]
[1757529120362,0.17654443,113430.0,113420.0,0.30046893]
[1757529120567,0.00022424,113430.0,113420.0,0.30046893]
[1757529121010,0.00022424,113430.0,113420.0,0.38799245]
[1757529121220,0.00022424,113430.0,113420.0,0.47552363]
[1757529126600,0.00022424,113430.0,113420.0,0.63028363]
[1757529127756,0.00022424,113430.0,113420.0,0.47552363]
[1757529127985,0.37264389,113430.0,113420.0,0.21087069]
[1757529128210,0.00022424,113430.0,113420.0,0.23343069]
[1757529128895,0.17654443,113430.0,113420.0,0.23243069]
[1757529129094,0.17654443,113430.0,113420.0,0.23043069]
[1757529130659,0.37264389,113430.0,113420.0,0.02856495]
[1757529130887,0.37264389,113430.0,113420.0,0.20787069]
[1757529131111,0.17654443,113430.0,113420.0,0.20787069]
[1757529131868,0.00022424,113430.0,113420.0,0.2619022]
[1757529132073,0.00022424,113430.0,113420.0,0.2844622]
[1757529132497,0.17654443,113430.0,113420.0,0.2844622]
[1757529132940,0.00022424,113430.0,113420.0,0.2844622]
[1757529134386,0.17654443,113430.0,113420.0,0.20787069]
[1757529134600,0.17654443,113430.0,113420.0,0.35930069]
[1757529134810,0.17654443,113430.0,113420.0,0.36227069]
[1757529135201,0.17654443,113430.0,113420.0,0.38483069]
[1757529135434,0.37264389,113430.0,113420.0,0.02645495]
[1757529135649,0.37264389,113430.0,113400.0,0.25583237]
[1757529135650,0.17634767,113420.0,113400.0,0.25583237]
[1757529135858,0.17635129,113410.0,113400.0,0.42999589]
[1757529136064,0.17634767,113420.0,113400.0,0.76999589]
[1757529136275,0.37244713,113420.0,113410.0,0.02646069]
[1757529136452,0.17634767,113420.0,113410.0,0.03154069]
[1757529136660,0.17633574,113420.0,113410.0,0.20789198]
[1757529136872,0.17633574,113420.0,113410.0,0.29542316]
[1757529137087,0.17633574,113420.0,113410.0,0.02857069]
[1757529137282,0.17643574,113420.0,113410.0,0.02857069]
[1757529137485,0.17643574,113420.0,113410.0,0.20789198]
[1757529137900,0.17643574,113420.0,113410.0,0.03154069]
[1757529138307,0.17643574,113420.0,113410.0,0.20789198]
[1757529138512,0.17643574,113420.0,113410.0,0.03154069]
[1757529138715,0.17643574,113420.0,113410.0,0.18143129]
[1757529138966,0.0001,113420.0,113410.0,0.18143129]
[1757529139181,0.0001,113420.0,113410.0,0.26896247]
[1757529139423,0.0001,113420.0,113410.0,0.29152247]
[1757529139898,0.0001,113420.0,113410.0,0.49152247]
[1757529140091,0.0001,113420.0,113410.0,1.11904599]
[1757529140583,0.0001,113420.0,113410.0,1.1455025]
[1757529141033,0.0001,113420.0,113410.0,1.1465025]
[1757529141248,0.0001,113420.0,113410.0,1.1475025]
[1757529141474,0.0001,113420.0,113410.0,1.5465025]
[1757529141921,0.0001,113420.0,113410.0,1.5475025]
[1757529142143,0.0001,113420.0,113410.0,1.6975025]
[1757529142838,0.0001,113420.0,113410.0,1.2975025]
[1757529143275,0.0001,113420.0,113410.0,1.6975025]
[1757529145093,0.0001,113420.0,113410.0,1.7475025]
[1757529145711,0.0001,113420.0,113410.0,1.9014225]
[1757529146539,0.0001,113420.0,113410.0,1.9013825]
[1757529147081,0.0001,113420.0,113410.0,2.03962097]
[1757529147299,1e-08,113420.0,113410.0,2.05548701]
[1757529147503,1e-08,113420.0,113410.0,1.90160701]
[1757529147946,0.00022424,113430.0,113420.0,0.25146232]
[1757529148146,0.00022424,113430.0,113420.0,0.41280797]
[1757529148374,0.00022424,113430.0,113420.0,0.504226]
[1757529148580,0.00022424,113430.0,113420.0,0.904226]
[1757529149259,0.00022424,113430.0,113420.0,0.93067565]
[1757529150081,0.00022424,113430.0,113420.0,0.93267565]
[1757529150307,0.00022424,113430.0,113420.0,0.93567565]
[1757529154310,0.00022424,113430.0,113420.0,1.08919565]
[1757529154516,0.00022424,113430.0,113420.0,1.08915565]
[1757529154828,0.00022424,113430.0,113420.0,1.26406907]
[1757529155808,0.00022424,113430.0,113420.0,1.11054907]
[1757529156033,0.00022424,113430.0,113420.0,1.06054907]
[1757529156214,0.00022424,113430.0,113420.0,1.21398907]
[1757529156620,0.00022424,113430.0,113420.0,1.15069104]
[1757529157203,0.00022424,113430.0,113420.0,0.59725104]
[1757529157425,0.00022424,113430.0,113420.0,0.75065104]
[1757529157632,0.00022424,113430.0,113420.0,1.15065104]
[1757529158069,0.00022424,113430.0,113420.0,0.90672752]
[1757529158274,0.00022424,113430.0,113420.0,0.63659787]
[1757529158479,0.00022424,113430.0,113420.0,0.72412139]
[1757529158693,0.00022424,113430.0,113420.0,0.72212139]
[1757529158895,0.00022424,113430.0,113420.0,0.45827787]
[1757529159097,0.17654443,113430.0,113420.0,0.46027787]
[1757529159323,0.00022424,113430.0,113420.0,0.61355787]
[1757529159534,0.00022424,113430.0,113420.0,0.60855787]
[1757529159742,0.17654443,113430.0,113420.0,0.60955787]
[1757529159944,0.17654443,113430.0,113420.0,0.61155787]
[1757529160141,0.00022424,113430.0,113420.0,0.61155787]
[1757529161337,0.17654443,113430.0,113420.0,0.61155787]
[1757529161650,0.17654443,113430.0,113420.0,0.61143787]
[1757529162441,0.17654443,113430.0,113420.0,0.45827787]
[1757529162656,0.17654443,113430.0,113420.0,0.61139787]
[1757529163085,0.00022424,113430.0,113420.0,0.61139787]
[1757529163289,0.17654443,113430.0,113420.0,0.61139787]
[1757529163492,0.17654443,113430.0,113420.0,0.60832787]
[1757529163693,0.17654443,113430.0,113420.0,0.61135787]
[1757529164516,0.17654443,113430.0,113420.0,0.60832787]
[1757529164869,0.17654443,113430.0,113420.0,0.61135787]
[1757529165056,0.17868443,113430.0,113420.0,0.00509]
[1757529165209,0.18189443,113430.0,113420.0,0.00509]
[1757529165676,0.17654443,113430.0,113420.0,0.00509]
[1757529167134,0.17868443,113430.0,113420.0,0.00509]
[1757529167339,0.18189443,113430.0,113420.0,0.00509]
[1757529167983,0.18189443,113430.0,113420.0,0.003]
[1757529168362,0.18189443,113430.0,113420.0,0.002]
[1757529168781,0.18189443,113430.0,113420.0,0.003]
[1757529169185,0.18189443,113430.0,113420.0,0.00409]
[1757529169464,0.17868443,113430.0,113420.0,0.00209]
[1757529169688,0.17654443,113430.0,113420.0,0.00209]
[1757529169919,0.17654443,113430.0,113420.0,0.17842574]
[1757529170140,0.17654443,113430.0,113420.0,0.23475756]
[1757529170579,0.17754443,113430.0,113420.0,0.23475756]
[1757529171867,0.00122424,113430.0,113420.0,0.23475756]
[1757529172078,0.17754443,113430.0,113420.0,0.23475756]
[1757529172623,0.00122424,113430.0,113420.0,0.23475756]
[1757529172906,0.00122424,113430.0,113420.0,0.25775756]
[1757529174188,0.17754443,113430.0,113420.0,0.25775756]
[1757529174384,0.17754443,113430.0,113420.0,0.18145574]
[1757529174511,0.17754443,113430.0,113420.0,0.33413574]
[1757529176983,0.00122424,113430.0,113420.0,0.33413574]
[1757529177603,0.00122424,113430.0,113420.0,0.35885574]
[1757529177814,0.17754443,113430.0,113420.0,0.35885574]
[1757529178029,0.17754443,113430.0,113420.0,0.41502162]
[1757529178493,0.17754443,113430.0,113420.0,0.06128588]
[1757529178713,0.17754443,113430.0,113420.0,0.18145574]
[1757529178925,0.00122424,113430.0,113420.0,0.18145574]
[1757529179136,0.17754443,113430.0,113420.0,0.18145574]
[1757529179967,0.00122424,113430.0,113420.0,0.18145574]
[1757529180173,0.17754443,113430.0,113420.0,0.18145574]
[1757529180594,0.00122424,113430.0,113420.0,0.23583876]
[1757529181662,0.00122424,113430.0,113420.0,0.38903876]
[1757529185282,0.17754443,113430.0,113420.0,0.21111876]
[1757529185491,0.17754443,113430.0,113420.0,0.18162574]
[1757529185914,0.00122424,113430.0,113420.0,0.18162574]
[1757529187381,0.00122424,113430.0,113420.0,0.20634574]
[1757529188894,0.00122424,113430.0,113420.0,0.23280262]
[1757529189119,0.00122424,113430.0,113420.0,0.3203338]
[1757529189787,0.00122424,113430.0,113420.0,0.47115535]
[1757529190008,0.00122424,113430.0,113420.0,0.81115535]
[1757529190260,0.00122424,113430.0,113420.0,0.83628193]
[1757529190474,0.00122424,113430.0,113420.0,0.7729839]
[1757529190686,0.00122424,113430.0,113420.0,0.85196183]
[1757529191536,0.00022424,113430.0,113420.0,0.85196183]
[1757529191748,0.00022424,113430.0,113420.0,1.25496183]
[1757529191962,0.00022424,113430.0,113420.0,1.3291039]
[1757529192624,0.00022424,113430.0,113420.0,1.3311039]
[1757529192836,0.00022424,113430.0,113420.0,1.41008183]
[1757529193475,0.00022424,113430.0,113420.0,1.46008183]
[1757529194114,0.00022424,113430.0,113420.0,1.3811039]
[1757529194330,0.00022424,113430.0,113420.0,1.46022448]
[1757529194584,0.00022424,113430.0,113420.0,1.51022448]
[1757529194792,0.00022424,113430.0,113420.0,1.4311039]
[1757529195256,0.00012424,113430.0,113420.0,1.4311039]
[1757529195504,0.00012424,113430.0,113420.0,1.51019005]
[1757529197099,0.00012424,113430.0,113420.0,1.60303005]
[1757529197568,0.00012424,113430.0,113420.0,1.60313005]
[1757529198472,1e-08,113430.0,113420.0,1.60313005]
[1757529198718,0.0001,113440.0,113430.0,1.14144677]
[1757529198914,0.0001,113440.0,113430.0,1.49158102]
[1757529199161,0.0001,113440.0,113430.0,1.49366102]
[1757529199376,0.0001,113440.0,113430.0,1.89366102]
[1757529199601,0.0001,113440.0,113430.0,1.92010981]
[1757529200310,0.0001,113440.0,113430.0,1.92210981]
[1757529200534,0.0001,113440.0,113430.0,1.9884282]
[1757529200752,0.0001,113440.0,113430.0,1.9894282]
[1757529202217,0.0001,113440.0,113430.0,2.1425082]
[1757529203472,0.0001,113440.0,113430.0,2.11349519]
[1757529203678,0.0001,113440.0,113430.0,2.1925082]
[1757529204142,0.0001,113440.0,113430.0,2.1926082]
[1757529204378,0.0001,113440.0,113430.0,2.1426082]
[1757529204599,0.0001,113440.0,113430.0,2.0395282]
[1757529204837,0.0001,113440.0,113430.0,2.1924482]
[1757529206089,0.0001,113440.0,113430.0,2.0395282]
[1757529206300,0.0001,113440.0,113430.0,2.1924482]
[1757529206884,0.0001,113440.0,113430.0,2.0395282]
[1757529207082,0.0001,113440.0,113430.0,2.0323682]
[1757529207280,0.0001,113440.0,113430.0,2.12643622]
[1757529207485,0.0001,113440.0,113430.0,1.92363622]
[1757529207828,0.0001,113440.0,113430.0,1.72643622]
[1757529208246,0.0001,113440.0,113430.0,2.12643622]
[1757529208487,0.0001,113440.0,113430.0,1.72363622]
[1757529208706,0.0001,113440.0,113430.0,1.47639622]
[1757529209443,0.0001,113440.0,113430.0,1.47629622]
[1757529210222,0.0001,113440.0,113430.0,1.23072964]
[1757529210423,0.0001,113440.0,113430.0,0.7798064]
[1757529210644,0.0001,113440.0,113430.0,1.1198064]
[1757529211994,0.0001,113440.0,113430.0,1.14625727]
[1757529214377,0.0001,113440.0,113430.0,1.54625727]
[1757529215550,0.0001,113440.0,113430.0,1.6093783]
[1757529216400,0.0001,113440.0,113430.0,1.82527028]
[1757529219417,0.0001,113450.0,113440.0,0.79143123]
[1757529219629,0.0001,113450.0,113440.0,1.32855963]
[1757529219894,0.0001,113450.0,113440.0,1.36172439]
[1757529220129,1e-08,113450.0,113440.0,1.78816756]
[1757529220352,1e-08,113460.0,113450.0,0.94141569]
[1757529220582,1e-08,113460.0,113450.0,1.28690757]
[1757529220820,1e-08,113460.0,113450.0,1.37644875]
[1757529221036,0.07051254,113490.0,113480.0,0.3762425]
[1757529221257,0.07051254,113490.0,113480.0,0.5293625]
[1757529221485,0.07051254,113490.0,113480.0,0.5313725]
[1757529221713,0.0001,113500.0,113490.0,0.17622698]
[1757529221933,0.0001,113500.0,113490.0,0.24949876]
[1757529222161,0.0001,113500.0,113490.0,0.24930593]
[1757529222380,0.00024094,113500.0,113490.0,0.24930593]
[1757529222573,0.18171239,113500.0,113490.0,0.25598358]
[1757529222797,0.18171239,113500.0,113490.0,0.0797566]
[1757529223094,0.20452239,113500.0,113480.0,0.3292425]
[1757529223325,0.00523,113490.0,113480.0,0.1762425]
[1757529223568,0.37714589,113490.0,113480.0,0.1762425]
[1757529223815,0.18148698,113490.0,113480.0,0.1762425]
[1757529224031,0.4011813,113500.0,113480.0,0.1782525]
[1757529224248,0.0001,113490.0,113480.0,0.1782525]
[1757529224498,0.0001,113490.0,113480.0,0.23892978]
[1757529224707,0.0001,113490.0,113480.0,0.23672675]
[1757529224912,0.0021,113490.0,113480.0,0.23672675]
[1757529225130,0.0021,113490.0,113480.0,0.5887587]
[1757529225344,0.0021,113490.0,113480.0,0.6114087]
[1757529226200,0.0051,113490.0,113480.0,0.6114087]
[1757529230376,0.0051,113490.0,113480.0,1.1240588]
[1757529231296,0.0001,113490.0,113480.0,1.1291588]
[1757529231533,0.0001,113490.0,113480.0,1.19244477]
[1757529231752,0.0011,113490.0,113480.0,1.19254477]
[1757529231969,0.0011,113490.0,113480.0,1.59254477]
[1757529232966,0.001,113490.0,113480.0,1.74522477]
[1757529233546,0.001,113490.0,113480.0,1.79522477]
[1757529233767,0.00024094,113500.0,113490.0,0.66622698]
[1757529233975,0.00024094,113500.0,113490.0,1.08321765]
[1757529234239,0.00024094,113500.0,113490.0,1.08519765]
[1757529234364,0.00024094,113500.0,113490.0,1.02191168]
[1757529235426,0.00024094,113500.0,113490.0,1.42191168]
[1757529235633,0.00024094,113500.0,113490.0,1.02291168]
[1757529236111,0.00024094,113500.0,113490.0,0.87023168]
[1757529236285,0.00024094,113500.0,113490.0,1.02291168]
[1757529236496,0.00024094,113500.0,113490.0,0.87375656]
[1757529236667,0.00024094,113500.0,113490.0,0.87475656]
[1757529236892,0.00024094,113500.0,113490.0,1.02753656]
[1757529237741,0.00024094,113500.0,113490.0,0.87485656]
[1757529237942,0.00024094,113500.0,113490.0,1.02753656]
[1757529238149,0.00024094,113500.0,113490.0,1.02743656]
[1757529239001,0.00024094,113500.0,113490.0,1.02753656]
[1757529239843,0.00024094,113500.0,113490.0,0.87710314]
[1757529240265,0.00024094,113500.0,113490.0,1.27710314]
[1757529240446,0.00024094,113500.0,113490.0,1.42974314]
[1757529240654,0.00024094,113500.0,113490.0,1.02974314]
[1757529241683,0.00024094,113500.0,113490.0,1.02874314]
[1757529242082,0.00024094,113500.0,113490.0,1.02774314]
[1757529244163,0.00024094,113500.0,113490.0,1.05062314]
[1757529248638,0.00024094,113500.0,113490.0,1.02774314]
[1757529252737,0.00024094,113500.0,113490.0,1.05062314]
[1757529256606,0.00024094,113500.0,113490.0,1.02770314]
[1757529258331,0.00024094,113500.0,113490.0,1.09098911]
[1757529259771,0.00024094,113500.0,113490.0,1.11386911]
[1757529262560,0.00024094,113500.0,113490.0,0.93838911]
[1757529262768,0.00024094,113500.0,113490.0,1.08785911]
[1757529262984,0.00024094,113500.0,113490.0,1.09094911]